[Event "*** SCC Grand Prix: Titled Tuesday Blitz"]
[Site "Chess.com"]
[Date "2020.06.09"]
[Round "7"]
[White "Ariadna_Atreides"]
[Black "fridaywins"]
[Result "0-1"]
[WhiteElo "1953"]
[BlackElo "2212"]
[TimeControl "180+1"]
[EndTime "10:19:31 PDT"]
[Termination "fridaywins won on time"]

1. d4 {[%clk 0:03:00.9]} 1... Nf6 {[%clk 0:02:59.3]} 2. Nf3 {[%clk 0:03:00.2]}
2... g6 {[%clk 0:02:59.5]} 3. c4 {[%clk 0:02:59.9]} 3... Bg7 {[%clk 0:03:00.4]}
4. Nc3 {[%clk 0:03:00]} 4... O-O {[%clk 0:03:01.3]} 5. e4 {[%clk 0:02:59.4]}
5... d6 {[%clk 0:03:01.1]} 6. Be2 {[%clk 0:02:59.1]} 6... e5 {[%clk 0:03:01.3]}
7. d5 {[%clk 0:02:59.1]} 7... a5 {[%clk 0:02:57.8]} 8. Bg5 {[%clk 0:02:58.5]}
8... h6 {[%clk 0:02:57.1]} 9. Bh4 {[%clk 0:02:59]} 9... g5 {[%clk 0:02:56.3]}
10. Bg3 {[%clk 0:02:58.1]} 10... Nh5 {[%clk 0:02:52.5]} 11. Nd2 {[%clk
0:02:52.4]} 11... Nf4 {[%clk 0:02:52.4]} 12. O-O {[%clk 0:02:51.6]} 12... b6
{[%clk 0:02:38.7]} 13. Bg4 {[%clk 0:02:49.3]} 13... Nd7 {[%clk 0:02:35.6]} 14.
a3 {[%clk 0:02:36.3]} 14... Nf6 {[%clk 0:02:28.6]} 15. Bxc8 {[%clk 0:02:35.7]}
15... Qxc8 {[%clk 0:02:23.8]} 16. b4 {[%clk 0:02:29.6]} 16... h5 {[%clk
0:01:40.2]} 17. f3 {[%clk 0:01:59]} 17... h4 {[%clk 0:01:36.3]} 18. Bf2 {[%clk
0:01:58.7]} 18... Nd3 {[%clk 0:01:27.8]} 19. Be3 {[%clk 0:01:39.9]} 19... h3
{[%clk 0:01:07.9]} 20. g3 {[%clk 0:01:22.9]} 20... g4 {[%clk 0:00:58.8]} 21. Rb1
{[%clk 0:01:09.1]} 21... axb4 {[%clk 0:00:53.7]} 22. axb4 {[%clk 0:01:07.9]}
22... gxf3 {[%clk 0:00:45.4]} 23. Qxf3 {[%clk 0:00:58.3]} 23... Ng4 {[%clk
0:00:11.3]} 24. Bg5 {[%clk 0:00:40.5]} 24... f6 {[%clk 0:00:11.6]} 25. Bh4
{[%clk 0:00:33.2]} 25... Ndf2 {[%clk 0:00:11.8]} 26. Rxf2 {[%clk 0:00:32.7]}
26... Nxf2 {[%clk 0:00:11.1]} 27. Qxf2 {[%clk 0:00:33.1]} 27... f5 {[%clk
0:00:11.6]} 28. Qe2 {[%clk 0:00:24.6]} 28... f4 {[%clk 0:00:11.3]} 29. Rf1
{[%clk 0:00:16.8]} 29... Ra3 {[%clk 0:00:11.7]} 30. Nb5 {[%clk 0:00:15.1]} 30...
Re3 {[%clk 0:00:11.5]} 31. Qd1 {[%clk 0:00:13.2]} 31... Qd7 {[%clk 0:00:11.1]}
32. g4 {[%clk 0:00:10.6]} 32... Rd3 {[%clk 0:00:09.3]} 33. Qe2 {[%clk
0:00:09.8]} 33... Re3 {[%clk 0:00:09.3]} 34. Qd1 {[%clk 0:00:09.2]} 34... Ra8
{[%clk 0:00:10.1]} 35. Bf2 {[%clk 0:00:08.3]} 35... Ra2 {[%clk 0:00:09.3]} 36.
Bxe3 {[%clk 0:00:07.8]} 36... fxe3 {[%clk 0:00:10.2]} 37. Nf3 {[%clk 0:00:07]}
37... e2 {[%clk 0:00:11.1]} 38. Qe1 {[%clk 0:00:06.2]} 38... Qxg4+ {[%clk
0:00:12]} 39. Qg3 {[%clk 0:00:04.7]} 39... exf1=Q+ {[%clk 0:00:12.4]} 40. Kxf1
{[%clk 0:00:04.4]} 40... Qxg3 {[%clk 0:00:12.1]} 41. hxg3 {[%clk 0:00:04.1]}
41... h2 {[%clk 0:00:10.4]} 42. Nxh2 {[%clk 0:00:03.7]} 42... Rxh2 {[%clk
0:00:11]} 43. Nxc7 {[%clk 0:00:04.2]} 43... Rb2 {[%clk 0:00:11.3]} 44. Nb5
{[%clk 0:00:04.1]} 44... Bf8 {[%clk 0:00:11.2]} 45. c5 {[%clk 0:00:02.8]} 45...
dxc5 {[%clk 0:00:09.7]} 46. d6 {[%clk 0:00:02.9]} 46... Rxb4 {[%clk 0:00:07.9]}
47. d7 {[%clk 0:00:02.5]} 47... Be7 {[%clk 0:00:08.1]} 48. Nc7 {[%clk
0:00:02.2]} 48... Rxe4 {[%clk 0:00:07.6]} 49. Nd5 {[%clk 0:00:01.9]} 49... Bd8
{[%clk 0:00:06.6]} 0-1

[Event "*** SCC Grand Prix: Titled Tuesday Blitz"]
[Site "Chess.com"]
[Date "2020.06.09"]
[Round "7"]
[White "Indianlad"]
[Black "BocharovD"]
[Result "1-0"]
[WhiteElo "2984"]
[BlackElo "2757"]
[TimeControl "180+1"]
[EndTime "10:19:33 PDT"]
[Termination "Indianlad won by resignation"]

1. d4 {[%clk 0:03:00.9]} 1... Nf6 {[%clk 0:02:59.4]} 2. c4 {[%clk 0:03:01]} 2...
e6 {[%clk 0:02:59.8]} 3. Nf3 {[%clk 0:03:01.1]} 3... d5 {[%clk 0:02:59.8]} 4. g3
{[%clk 0:03:01.1]} 4... Bb4+ {[%clk 0:02:59]} 5. Bd2 {[%clk 0:03:00.2]} 5... Be7
{[%clk 0:02:58.8]} 6. Bg2 {[%clk 0:03:00.1]} 6... O-O {[%clk 0:02:59.4]} 7. O-O
{[%clk 0:03:00.6]} 7... Nbd7 {[%clk 0:02:59.8]} 8. Qc2 {[%clk 0:02:56.3]} 8...
Ne4 {[%clk 0:02:59.8]} 9. Nc3 {[%clk 0:02:55.4]} 9... Nxd2 {[%clk 0:02:59.1]}
10. Nxd2 {[%clk 0:02:55.5]} 10... c6 {[%clk 0:02:59.6]} 11. Rad1 {[%clk
0:02:52.7]} 11... f5 {[%clk 0:02:54.9]} 12. a3 {[%clk 0:02:47]} 12... a5 {[%clk
0:02:54.3]} 13. Rb1 {[%clk 0:02:45.8]} 13... Nf6 {[%clk 0:02:49.6]} 14. b4
{[%clk 0:02:38.5]} 14... Ne4 {[%clk 0:02:49.3]} 15. e3 {[%clk 0:02:33.2]} 15...
axb4 {[%clk 0:02:22.7]} 16. axb4 {[%clk 0:02:33.4]} 16... Ra3 {[%clk 0:02:23.2]}
17. Ndxe4 {[%clk 0:02:26.2]} 17... fxe4 {[%clk 0:02:24.1]} 18. Rb3 {[%clk
0:02:26.7]} 18... Rxb3 {[%clk 0:02:05.5]} 19. Qxb3 {[%clk 0:02:27.6]} 19... Kh8
{[%clk 0:02:04.6]} 20. b5 {[%clk 0:02:27.1]} 20... Bd7 {[%clk 0:02:04.4]} 21.
bxc6 {[%clk 0:02:21.4]} 21... Bxc6 {[%clk 0:02:02]} 22. Ra1 {[%clk 0:02:17.3]}
22... Qe8 {[%clk 0:01:31.7]} 23. Ra2 {[%clk 0:02:07.5]} 23... Qf7 {[%clk
0:01:30.7]} 24. cxd5 {[%clk 0:02:00.3]} 24... exd5 {[%clk 0:01:30.7]} 25. Bf1
{[%clk 0:01:57.8]} 25... h5 {[%clk 0:01:24.1]} 26. Qd1 {[%clk 0:01:46.4]} 26...
Bb4 {[%clk 0:01:08.9]} 27. Qb3 {[%clk 0:01:36.1]} 27... Be7 {[%clk 0:01:06.7]}
28. h4 {[%clk 0:01:17.5]} 28... g5 {[%clk 0:01:05.5]} 29. hxg5 {[%clk
0:01:17.3]} 29... Bxg5 {[%clk 0:01:06.4]} 30. Qd1 {[%clk 0:00:45.6]} 30... h4
{[%clk 0:01:06]} 31. g4 {[%clk 0:00:35.5]} 31... Qe6 {[%clk 0:00:43.2]} 32. Bg2
{[%clk 0:00:32.3]} 32... Kg7 {[%clk 0:00:43.3]} 33. Rc2 {[%clk 0:00:28.6]} 33...
Rf6 {[%clk 0:00:27.2]} 34. Bxe4 {[%clk 0:00:25]} 34... h3 {[%clk 0:00:24.4]} 35.
Bf5 {[%clk 0:00:22.2]} 35... Rxf5 {[%clk 0:00:18]} 36. gxf5 {[%clk 0:00:23.1]}
36... Qxf5 {[%clk 0:00:18.9]} 37. f4 {[%clk 0:00:23.5]} 37... Bh4 {[%clk
0:00:15.4]} 38. Kh2 {[%clk 0:00:20.6]} 38... Bd7 {[%clk 0:00:14.5]} 39. Rd2
{[%clk 0:00:17.2]} 39... Kh6 {[%clk 0:00:12.3]} 40. Qf3 {[%clk 0:00:17.2]} 40...
Be6 {[%clk 0:00:10.1]} 41. Ne2 {[%clk 0:00:17.6]} 41... Qb1 {[%clk 0:00:07.4]}
42. Ng3 {[%clk 0:00:17.5]} 42... Qe1 {[%clk 0:00:03.4]} 43. Rb2 {[%clk 0:00:16]}
43... Kg7 {[%clk 0:00:02]} 44. f5 {[%clk 0:00:15.5]} 44... Bf7 {[%clk 0:00:02]}
45. Qg4+ {[%clk 0:00:15.4]} 45... Kf8 {[%clk 0:00:02.3]} 46. Qxh4 {[%clk
0:00:15.8]} 1-0

[Event "*** SCC Grand Prix: Titled Tuesday Blitz"]
[Site "Chess.com"]
[Date "2020.06.09"]
[Round "7"]
[White "MiroVlasenko"]
[Black "Raja3401"]
[Result "0-1"]
[WhiteElo "2615"]
[BlackElo "2813"]
[TimeControl "180+1"]
[EndTime "10:19:34 PDT"]
[Termination "Raja3401 won by resignation"]

1. d4 {[%clk 0:03:00.9]} 1... Nf6 {[%clk 0:02:59.7]} 2. Bg5 {[%clk 0:03:00.8]}
2... e6 {[%clk 0:02:59.9]} 3. e4 {[%clk 0:02:57.9]} 3... h6 {[%clk 0:03:00.2]}
4. Bxf6 {[%clk 0:02:58.2]} 4... Qxf6 {[%clk 0:03:01.1]} 5. Nc3 {[%clk
0:02:58.7]} 5... Bb4 {[%clk 0:02:59.5]} 6. Qd2 {[%clk 0:02:58.8]} 6... d5 {[%clk
0:02:59.6]} 7. e5 {[%clk 0:02:57.3]} 7... Qd8 {[%clk 0:02:58.2]} 8. f4 {[%clk
0:02:55]} 8... c5 {[%clk 0:02:58.1]} 9. a3 {[%clk 0:02:54.8]} 9... Ba5 {[%clk
0:02:46.8]} 10. b4 {[%clk 0:02:49.1]} 10... cxb4 {[%clk 0:02:13.6]} 11. Nb5
{[%clk 0:02:48.8]} 11... Nc6 {[%clk 0:02:13.3]} 12. Nd6+ {[%clk 0:02:24]} 12...
Kf8 {[%clk 0:02:07.3]} 13. Nf3 {[%clk 0:02:22.2]} 13... bxa3 {[%clk 0:01:56]}
14. c3 {[%clk 0:02:21.9]} 14... a6 {[%clk 0:01:45.6]} 15. Rxa3 {[%clk 0:02:15]}
15... Bc7 {[%clk 0:01:39.3]} 16. Nb5 {[%clk 0:02:11.7]} 16... Bb6 {[%clk
0:01:36.4]} 17. Bd3 {[%clk 0:02:00.4]} 17... Bd7 {[%clk 0:01:36]} 18. Nd6 {[%clk
0:02:00.1]} 18... Rb8 {[%clk 0:01:24.7]} 19. f5 {[%clk 0:01:47.9]} 19... Bc7
{[%clk 0:01:24]} 20. fxe6 {[%clk 0:01:45.6]} 20... Bxe6 {[%clk 0:01:24.5]} 21.
Nf5 {[%clk 0:01:44.7]} 21... Bxf5 {[%clk 0:01:13.3]} 22. Bxf5 {[%clk 0:01:43.8]}
22... Qe7 {[%clk 0:01:13.4]} 23. Ra1 {[%clk 0:01:40.5]} 23... g6 {[%clk
0:01:08.3]} 24. Bc2 {[%clk 0:01:37.2]} 24... Kg7 {[%clk 0:01:07.6]} 25. O-O
{[%clk 0:01:35.1]} 25... Rhf8 {[%clk 0:00:46.1]} 26. h4 {[%clk 0:01:29.6]} 26...
f5 {[%clk 0:00:40.3]} 27. h5 {[%clk 0:00:55.6]} 27... g5 {[%clk 0:00:40.3]} 28.
g4 {[%clk 0:00:55.8]} 28... fxg4 {[%clk 0:00:34.7]} 29. Nh2 {[%clk 0:00:55]}
29... Nxe5 {[%clk 0:00:12.9]} 30. dxe5 {[%clk 0:00:28.3]} 30... Qxe5 {[%clk
0:00:13.8]} 31. Nxg4 {[%clk 0:00:25.4]} 31... Qg3+ {[%clk 0:00:13.8]} 32. Qg2
{[%clk 0:00:25.6]} 32... Qxc3 {[%clk 0:00:14]} 33. Rad1 {[%clk 0:00:19]} 33...
Rxf1+ {[%clk 0:00:08.6]} 34. Rxf1 {[%clk 0:00:18.8]} 34... Qd4+ {[%clk
0:00:08.7]} 35. Kh1 {[%clk 0:00:18.6]} 35... Bf4 {[%clk 0:00:08.6]} 36. Bb1
{[%clk 0:00:17.3]} 36... Re8 {[%clk 0:00:07.6]} 37. Qc2 {[%clk 0:00:16.8]} 37...
Qe4+ {[%clk 0:00:05.6]} 38. Qxe4 {[%clk 0:00:16.4]} 38... dxe4 {[%clk
0:00:06.5]} 39. Re1 {[%clk 0:00:16.8]} 39... e3 {[%clk 0:00:06.8]} 40. Kg2
{[%clk 0:00:17.2]} 40... b5 {[%clk 0:00:07.2]} 41. Kf3 {[%clk 0:00:17.5]} 41...
a5 {[%clk 0:00:07.6]} 42. Be4 {[%clk 0:00:17]} 42... b4 {[%clk 0:00:06.3]} 43.
Nxe3 {[%clk 0:00:17.3]} 43... a4 {[%clk 0:00:06.8]} 44. Nf5+ {[%clk 0:00:16.9]}
44... Kf6 {[%clk 0:00:06.7]} 45. Rd1 {[%clk 0:00:16.6]} 45... b3 {[%clk
0:00:05.5]} 46. Rd5 {[%clk 0:00:14]} 46... a3 {[%clk 0:00:05.3]} 47. Rb5 {[%clk
0:00:14]} 47... a2 {[%clk 0:00:05]} 48. Rb6+ {[%clk 0:00:14.2]} 48... Ke5 {[%clk
0:00:05]} 49. Rb5+ {[%clk 0:00:14.6]} 49... Kf6 {[%clk 0:00:05.5]} 50. Ra5
{[%clk 0:00:15.1]} 50... b2 {[%clk 0:00:05.6]} 51. Rxa2 {[%clk 0:00:14.1]} 51...
Rxe4 {[%clk 0:00:06.2]} 52. Rxb2 {[%clk 0:00:14.4]} 52... Kxf5 {[%clk
0:00:06.3]} 53. Rb5+ {[%clk 0:00:14.7]} 53... Re5 {[%clk 0:00:06.8]} 54. Rb6
{[%clk 0:00:15.2]} 54... g4+ {[%clk 0:00:06.9]} 55. Kg2 {[%clk 0:00:14.7]} 55...
Kg5 {[%clk 0:00:07.2]} 0-1

[Event "*** SCC Grand Prix: Titled Tuesday Blitz"]
[Site "Chess.com"]
[Date "2020.06.09"]
[Round "7"]
[White "BulletMercenary"]
[Black "Sueetin"]
[Result "0-1"]
[WhiteElo "2115"]
[BlackElo "2356"]
[TimeControl "180+1"]
[EndTime "10:19:34 PDT"]
[Termination "Sueetin won on time"]

1. e4 {[%clk 0:03:00.9]} 1... e6 {[%clk 0:03:00]} 2. d4 {[%clk 0:03:00.5]} 2...
d5 {[%clk 0:03:00.5]} 3. e5 {[%clk 0:02:59]} 3... c5 {[%clk 0:03:00.2]} 4. Nf3
{[%clk 0:02:59.5]} 4... cxd4 {[%clk 0:02:59]} 5. Bd3 {[%clk 0:02:59.7]} 5... Nc6
{[%clk 0:02:58.7]} 6. O-O {[%clk 0:03:00.2]} 6... Bd7 {[%clk 0:02:56.7]} 7. a3
{[%clk 0:02:58]} 7... a5 {[%clk 0:02:52.7]} 8. Re1 {[%clk 0:02:45]} 8... a4
{[%clk 0:02:49.1]} 9. Bf4 {[%clk 0:02:17.3]} 9... Qb6 {[%clk 0:02:46.5]} 10. Qc1
{[%clk 0:02:06.1]} 10... Nge7 {[%clk 0:02:45.1]} 11. Nbd2 {[%clk 0:02:05.9]}
11... Ng6 {[%clk 0:02:40.5]} 12. Bg3 {[%clk 0:02:05.8]} 12... Be7 {[%clk
0:02:33.3]} 13. h4 {[%clk 0:02:03.8]} 13... O-O {[%clk 0:02:27.3]} 14. h5 {[%clk
0:02:00.6]} 14... Nh8 {[%clk 0:02:26.7]} 15. Nf1 {[%clk 0:02:00.5]} 15... f5
{[%clk 0:02:23.5]} 16. exf6 {[%clk 0:01:53.3]} 16... Bxf6 {[%clk 0:02:18.7]} 17.
Ng5 {[%clk 0:01:38.6]} 17... Bxg5 {[%clk 0:02:14.3]} 18. Qxg5 {[%clk 0:01:39.5]}
18... Nf7 {[%clk 0:02:14.8]} 19. Qh4 {[%clk 0:01:12.5]} 19... e5 {[%clk
0:02:06.4]} 20. h6 {[%clk 0:01:06.9]} 20... gxh6 {[%clk 0:01:55]} 21. Qf6 {[%clk
0:00:59.1]} 21... e4 {[%clk 0:01:49.1]} 22. Be2 {[%clk 0:00:50]} 22... Qd8
{[%clk 0:01:23.1]} 23. Qf4 {[%clk 0:00:43]} 23... Nfe5 {[%clk 0:01:14.5]} 24.
Qxh6 {[%clk 0:00:40.7]} 24... Qf6 {[%clk 0:01:06]} 25. Qh5 {[%clk 0:00:28.9]}
25... Be8 {[%clk 0:00:59.5]} 26. Qh2 {[%clk 0:00:27.6]} 26... Bg6 {[%clk
0:00:58.2]} 27. Rad1 {[%clk 0:00:20.5]} 27... Ra5 {[%clk 0:00:44.5]} 28. Rxd4
{[%clk 0:00:20.4]} 28... Nxd4 {[%clk 0:00:33.9]} 29. Bxe5 {[%clk 0:00:20.6]}
29... Qxf2+ {[%clk 0:00:34]} 30. Kh1 {[%clk 0:00:20.6]} 30... Qxe1 {[%clk
0:00:20.1]} 31. Bxd4 {[%clk 0:00:20.3]} 31... Rxf1+ {[%clk 0:00:19.1]} 32. Bxf1
{[%clk 0:00:20.1]} 32... Qxf1+ {[%clk 0:00:19.7]} 33. Bg1 {[%clk 0:00:20.6]}
33... Ra8 {[%clk 0:00:18.2]} 34. Qe5 {[%clk 0:00:18.8]} 34... Rf8 {[%clk
0:00:17.3]} 35. Qxd5+ {[%clk 0:00:16.7]} 35... Kg7 {[%clk 0:00:17.4]} 36. Qe5+
{[%clk 0:00:16.5]} 36... Kh6 {[%clk 0:00:15.7]} 37. Qh2+ {[%clk 0:00:16.4]}
37... Kg7 {[%clk 0:00:15.3]} 38. Qe5+ {[%clk 0:00:16.7]} 38... Rf6 {[%clk
0:00:15.6]} 39. Qc7+ {[%clk 0:00:13.2]} 39... Kh6 {[%clk 0:00:15.3]} 40. Qh2+
{[%clk 0:00:13.3]} 40... Kg7 {[%clk 0:00:15.6]} 41. Qc7+ {[%clk 0:00:13.4]}
41... Bf7 {[%clk 0:00:16]} 42. Qg3+ {[%clk 0:00:10.6]} 42... Kf8 {[%clk
0:00:15.1]} 43. Qb8+ {[%clk 0:00:10.6]} 43... Be8 {[%clk 0:00:14.8]} 44. Qh2
{[%clk 0:00:05.7]} 44... Kg7 {[%clk 0:00:12.6]} 45. Qg3+ {[%clk 0:00:05.7]}
45... Rg6 {[%clk 0:00:11]} 46. Qc7+ {[%clk 0:00:05.9]} 46... Kf8 {[%clk
0:00:10.6]} 47. Qc5+ {[%clk 0:00:03.6]} 47... Kg7 {[%clk 0:00:09.4]} 48. Qe5+
{[%clk 0:00:03.8]} 48... Kg8 {[%clk 0:00:08.6]} 49. Qxe8+ {[%clk 0:00:03.2]}
49... Kg7 {[%clk 0:00:08.2]} 50. Qe7+ {[%clk 0:00:03.8]} 50... Kh6 {[%clk
0:00:07.9]} 51. Qh4+ {[%clk 0:00:04.1]} 51... Kg7 {[%clk 0:00:08.2]} 52. Qe7+
{[%clk 0:00:04.7]} 52... Qf7 {[%clk 0:00:08]} 53. Bd4+ {[%clk 0:00:04.5]} 53...
Kg8 {[%clk 0:00:07.2]} 54. Qd8+ {[%clk 0:00:02.4]} 54... Qf8 {[%clk 0:00:07.5]}
0-1

[Event "*** SCC Grand Prix: Titled Tuesday Blitz"]
[Site "Chess.com"]
[Date "2020.06.09"]
[Round "7"]
[White "Nastya_Rakhmangulova"]
[Black "Grieve72"]
[Result "1-0"]
[WhiteElo "2279"]
[BlackElo "2373"]
[TimeControl "180+1"]
[EndTime "10:19:35 PDT"]
[Termination "Nastya_Rakhmangulova won on time"]

1. e4 {[%clk 0:03:00.9]} 1... c5 {[%clk 0:03:00.1]} 2. Nf3 {[%clk 0:03:01]} 2...
e6 {[%clk 0:03:00.6]} 3. c3 {[%clk 0:03:00.9]} 3... Nf6 {[%clk 0:03:00.2]} 4. e5
{[%clk 0:03:01.5]} 4... Nd5 {[%clk 0:03:00.8]} 5. d4 {[%clk 0:03:02.1]} 5...
cxd4 {[%clk 0:03:01.7]} 6. cxd4 {[%clk 0:03:02.8]} 6... d6 {[%clk 0:03:02.3]} 7.
Bc4 {[%clk 0:03:01.3]} 7... Be7 {[%clk 0:02:59.9]} 8. O-O {[%clk 0:03:01.4]}
8... O-O {[%clk 0:02:59.9]} 9. Qe2 {[%clk 0:03:02]} 9... b6 {[%clk 0:02:59.1]}
10. Bxd5 {[%clk 0:02:58.6]} 10... exd5 {[%clk 0:02:56.6]} 11. Nc3 {[%clk
0:02:59.1]} 11... Ba6 {[%clk 0:02:49]} 12. Nb5 {[%clk 0:02:59.2]} 12... Nc6
{[%clk 0:02:39]} 13. Bf4 {[%clk 0:02:39.6]} 13... dxe5 {[%clk 0:02:29]} 14. Bxe5
{[%clk 0:02:39.2]} 14... Qd7 {[%clk 0:02:20.1]} 15. a4 {[%clk 0:02:38]} 15...
Rac8 {[%clk 0:02:10.9]} 16. Rfc1 {[%clk 0:02:27.8]} 16... Bb4 {[%clk 0:02:04.6]}
17. Bf4 {[%clk 0:02:11.8]} 17... Qf5 {[%clk 0:01:51.5]} 18. Be3 {[%clk
0:02:10.7]} 18... Na5 {[%clk 0:01:48.8]} 19. Qd1 {[%clk 0:02:08.5]} 19... Bxb5
{[%clk 0:01:47.5]} 20. axb5 {[%clk 0:02:08]} 20... h6 {[%clk 0:01:33.8]} 21. Ne5
{[%clk 0:02:02.5]} 21... Rxc1 {[%clk 0:01:23.1]} 22. Rxc1 {[%clk 0:02:03.4]}
22... Rc8 {[%clk 0:01:23.5]} 23. Nc6 {[%clk 0:02:02.8]} 23... Nxc6 {[%clk
0:01:10.2]} 24. bxc6 {[%clk 0:02:03.7]} 24... a5 {[%clk 0:00:52.4]} 25. Qa4
{[%clk 0:01:59.9]} 25... Qd3 {[%clk 0:00:41.6]} 26. c7 {[%clk 0:01:51.6]} 26...
b5 {[%clk 0:00:40.3]} 27. Qc2 {[%clk 0:01:32.5]} 27... Qxc2 {[%clk 0:00:22.3]}
28. Rxc2 {[%clk 0:01:33.4]} 28... Kf8 {[%clk 0:00:22.7]} 29. Bf4 {[%clk
0:01:30.7]} 29... Ke7 {[%clk 0:00:21.9]} 30. Kf1 {[%clk 0:01:27.7]} 30... Bd6
{[%clk 0:00:20.4]} 31. Bxd6+ {[%clk 0:00:47.8]} 31... Kxd6 {[%clk 0:00:21.3]}
32. Rc5 {[%clk 0:00:48.2]} 32... b4 {[%clk 0:00:21.9]} 33. Rxa5 {[%clk
0:00:38.8]} 33... Rxc7 {[%clk 0:00:22.3]} 34. Ra6+ {[%clk 0:00:23.1]} 34... Kd7
{[%clk 0:00:22.8]} 35. Ke2 {[%clk 0:00:22.6]} 35... Rc2+ {[%clk 0:00:22.5]} 36.
Ke3 {[%clk 0:00:19.7]} 36... Rxb2 {[%clk 0:00:22]} 37. Rb6 {[%clk 0:00:20]}
37... Kc7 {[%clk 0:00:19.6]} 38. Rb5 {[%clk 0:00:19.4]} 38... Kc6 {[%clk
0:00:19.3]} 39. Rc5+ {[%clk 0:00:19.7]} 39... Kd6 {[%clk 0:00:18.9]} 40. Rb5
{[%clk 0:00:20.3]} 40... b3 {[%clk 0:00:18.2]} 41. g3 {[%clk 0:00:20.5]} 41...
g5 {[%clk 0:00:15.9]} 42. h4 {[%clk 0:00:19.7]} 42... f5 {[%clk 0:00:14.5]} 43.
Rb6+ {[%clk 0:00:19.1]} 43... Kc7 {[%clk 0:00:13.8]} 44. Rxh6 {[%clk 0:00:19.7]}
44... Rc2 {[%clk 0:00:12.5]} 45. Kd3 {[%clk 0:00:18.9]} 45... Rc4 {[%clk
0:00:08.5]} 46. Rh7+ {[%clk 0:00:13.2]} 46... Kb6 {[%clk 0:00:08.7]} 47. Rh8
{[%clk 0:00:12.8]} 47... Ka7 {[%clk 0:00:05]} 48. Rh7+ {[%clk 0:00:12.6]} 48...
Ka6 {[%clk 0:00:04.8]} 49. Rh8 {[%clk 0:00:12.6]} 49... Rb4 {[%clk 0:00:03.1]}
50. Ra8+ {[%clk 0:00:11.7]} 50... Kb7 {[%clk 0:00:03.1]} 51. Ra1 {[%clk
0:00:12.6]} 51... b2 {[%clk 0:00:02.5]} 52. Rb1 {[%clk 0:00:12.8]} 52... gxh4
{[%clk 0:00:03]} 53. gxh4 {[%clk 0:00:13.4]} 53... Kc6 {[%clk 0:00:02.4]} 54. h5
{[%clk 0:00:13.8]} 54... Kd6 {[%clk 0:00:01.7]} 55. Ke3 {[%clk 0:00:10.6]} 1-0

[Event "*** SCC Grand Prix: Titled Tuesday Blitz"]
[Site "Chess.com"]
[Date "2020.06.09"]
[Round "7"]
[White "Volodar_Murzin"]
[Black "rpragchess"]
[Result "1-0"]
[WhiteElo "2735"]
[BlackElo "2836"]
[TimeControl "180+1"]
[EndTime "10:19:36 PDT"]
[Termination "Volodar_Murzin won by resignation"]

1. e4 {[%clk 0:03:00.9]} 1... c5 {[%clk 0:02:56.2]} 2. Nf3 {[%clk 0:03:00.5]}
2... Nc6 {[%clk 0:02:56.1]} 3. Bb5 {[%clk 0:03:00.1]} 3... g6 {[%clk 0:02:54.6]}
4. Bxc6 {[%clk 0:03:00]} 4... bxc6 {[%clk 0:02:54.1]} 5. O-O {[%clk 0:03:00.3]}
5... Bg7 {[%clk 0:02:53.8]} 6. Re1 {[%clk 0:03:00.8]} 6... Nh6 {[%clk
0:02:53.5]} 7. c3 {[%clk 0:03:00.1]} 7... O-O {[%clk 0:02:53.1]} 8. d4 {[%clk
0:03:00.2]} 8... cxd4 {[%clk 0:02:47.8]} 9. cxd4 {[%clk 0:03:01.1]} 9... d5
{[%clk 0:02:48.4]} 10. e5 {[%clk 0:03:00.9]} 10... f6 {[%clk 0:02:48.5]} 11. h3
{[%clk 0:03:00.8]} 11... Qb6 {[%clk 0:02:03.8]} 12. exf6 {[%clk 0:02:49.2]}
12... exf6 {[%clk 0:02:02.2]} 13. Nc3 {[%clk 0:02:49.6]} 13... Nf7 {[%clk
0:02:00.6]} 14. Na4 {[%clk 0:02:46.9]} 14... Qd8 {[%clk 0:01:53]} 15. Nc5 {[%clk
0:02:44.1]} 15... Re8 {[%clk 0:01:52.9]} 16. Bf4 {[%clk 0:02:42.8]} 16... a5
{[%clk 0:01:46]} 17. Qa4 {[%clk 0:02:40.2]} 17... Bd7 {[%clk 0:01:43.3]} 18.
Rxe8+ {[%clk 0:02:29.5]} 18... Bxe8 {[%clk 0:01:28.9]} 19. Re1 {[%clk
0:02:27.3]} 19... Qb6 {[%clk 0:01:25.2]} 20. b3 {[%clk 0:02:23.5]} 20... Qb4
{[%clk 0:01:06.7]} 21. Bd2 {[%clk 0:02:16.1]} 21... Qxa4 {[%clk 0:01:04.9]} 22.
Nxa4 {[%clk 0:02:17]} 22... Nd6 {[%clk 0:01:05.1]} 23. Bf4 {[%clk 0:02:09.7]}
23... Ne4 {[%clk 0:01:00.2]} 24. Nd2 {[%clk 0:02:06.7]} 24... f5 {[%clk
0:00:47.7]} 25. Nf3 {[%clk 0:02:00.9]} 25... Bf8 {[%clk 0:00:37.7]} 26. Rc1
{[%clk 0:01:56.3]} 26... h6 {[%clk 0:00:24]} 27. Bc7 {[%clk 0:01:23.9]} 27...
Bb4 {[%clk 0:00:18.8]} 28. Ne5 {[%clk 0:01:18.6]} 28... Rc8 {[%clk 0:00:18]} 29.
Bb6 {[%clk 0:01:14.8]} 29... Kg7 {[%clk 0:00:18.1]} 30. f3 {[%clk 0:01:11]}
30... Nf6 {[%clk 0:00:14.1]} 31. Bc5 {[%clk 0:01:05.3]} 31... Nd7 {[%clk
0:00:10.5]} 32. Nxd7 {[%clk 0:00:56.6]} 32... Bxd7 {[%clk 0:00:10.1]} 33. Bxb4
{[%clk 0:00:55.4]} 33... axb4 {[%clk 0:00:09.7]} 34. Nc5 {[%clk 0:00:56.3]}
34... Rc7 {[%clk 0:00:08.4]} 35. Nd3 {[%clk 0:00:47]} 35... Rb7 {[%clk
0:00:07.8]} 36. f4 {[%clk 0:00:47.2]} 36... Kf6 {[%clk 0:00:07.4]} 37. Kf2
{[%clk 0:00:47.2]} 37... Rb6 {[%clk 0:00:07.6]} 38. Rc2 {[%clk 0:00:47.4]} 38...
g5 {[%clk 0:00:06.9]} 39. g3 {[%clk 0:00:47]} 39... Bc8 {[%clk 0:00:06.9]} 40.
h4 {[%clk 0:00:46.1]} 40... Ba6 {[%clk 0:00:06.8]} 41. Ne5 {[%clk 0:00:44.3]}
41... Ke6 {[%clk 0:00:05.1]} 42. Rxc6+ {[%clk 0:00:40.7]} 42... Rxc6 {[%clk
0:00:05.3]} 43. Nxc6 {[%clk 0:00:41.6]} 43... gxf4 {[%clk 0:00:05.7]} 44. gxf4
{[%clk 0:00:41.8]} 44... Bd3 {[%clk 0:00:06.6]} 45. Nxb4 {[%clk 0:00:41.3]}
45... Bb1 {[%clk 0:00:07.5]} 46. Ke3 {[%clk 0:00:38.5]} 46... Kd6 {[%clk
0:00:08.1]} 47. Kd2 {[%clk 0:00:37.5]} 47... Be4 {[%clk 0:00:07.3]} 48. Nc2
{[%clk 0:00:33.3]} 48... Kc6 {[%clk 0:00:07.2]} 49. Kc3 {[%clk 0:00:32.7]} 49...
Kb5 {[%clk 0:00:07.1]} 50. a4+ {[%clk 0:00:29.3]} 50... Ka5 {[%clk 0:00:07]} 51.
Nb4 {[%clk 0:00:29.2]} 51... Kb6 {[%clk 0:00:06.2]} 52. Nd3 {[%clk 0:00:28.6]}
52... Ka5 {[%clk 0:00:05.5]} 53. Ne5 {[%clk 0:00:28.3]} 53... Kb6 {[%clk
0:00:05]} 54. Kb4 {[%clk 0:00:24.7]} 54... h5 {[%clk 0:00:04.4]} 55. a5+ {[%clk
0:00:23.7]} 55... Ka6 {[%clk 0:00:04.7]} 56. Nd7 {[%clk 0:00:23.8]} 56... Bc2
{[%clk 0:00:04.3]} 57. Nc5+ {[%clk 0:00:22.2]} 57... Ka7 {[%clk 0:00:04.7]} 58.
Kb5 {[%clk 0:00:22.7]} 1-0